Workbook

Sheet Title sheet
C4: XXXXXXXXXXX
D7: An economic evaluation of mental wellbeing interventions at work in England
D10: About the model:
D12: This cost-calculator is intended for use by decision makers to determine if a mental health intervention at work is cost-saving for a specific organisation from the perspective of the employer. The model is intended to be used as one decision making tool and should be used in conjunction with other tools/information. The baseline costs are provided as a starting point and as an example of the type of inputs that could be used. However, the baseline inputs have high levels of uncertainty and should be used with care and caution. Each baseline input has a comment in the cell to indicate the input source. A variety of intervention types, based on evidence, have been included as a guide only. It is likely that the information required for the model will differ by organisation. Hence, it is intended that the user will input data specific to their own organisation (or the organisation where the intervention will be implemented) and that the results will supplement decision making. The model should be used alongside the associated economic model report which is available on the NICE website.
D18: Navigating the model:
D20: The rectangular buttons to the left hand side allow the user to navigate between sections. Chevron buttons at the top of each sheet allow the user to navigate to sub-sections within each section.
D23: The 'Inputs' sheet is where all input parameters are displayed. Many of the inputs have a 'user defined input' field allowing the user to enter their own value and bypass the suggested value. Use the chevron button to navigate to the 'Interventions' sheet. The 'Interventions' sheets allows the user to view the underlying data for each intervention type including employee outcomes. The 'Interventions' sheet can also be used to input user defined employee outcomes.
D27: The 'Results' sheet displays the results of the model. Use the chevron button to navigate to the 'Sensitivity Analysis' sheet. The 'Sensitivity Analysis' sheet allows the user to explore the effect of varying each input on the results.
D30: Model functionality:
D32: Black text | F32: Indicates input cells. These can be changed as appropriate to your requirements.
D34: Red text | F34: Indicates a formula cell. These are dependent upon other cells, and should not be changed. There are no password or protected sheets.
D36: Comments | F36: A red mark in the corner of a cell indicates a comment. To view the comment, hover the pointer over the cell.
F38: Drop down boxes are used to display different options for the model user to select. The model will automatically update depending on which option is selected.
F40: An information logo indicates additional information. To view the information, click the icon and a pop up box will appear.

Sheet Inputs
AE10: Slider chart | AK10: Sensitivity analysis | AR10: Calculations
AF11: LIVE | AG11: Spin button
AE12: No of employees | AF12: =IF('Base case'!$E$127=1,Inputs!AG12,Inputs!E17) -> 50 | AG12: 100
AK13: Cost of intervention | AL13: ='Base case'!E20 -> 5000 | AS13: Incremental
AE14: Cost of intervention per person | AF14: =IF('Base case'!$E$127=1,Inputs!AG14,Inputs!H17) -> 100 | AG14: 100 | AK14: 0 | AL14: 0 | AR14: =$D$19 -> Absenteeism (sick leave) | AS14: =H21*E17*E20 -> 0
D15: Intervention type | E15: Manager mental health training | G15: =LOWER(E15) -> manager mental health training | AK15: 100 | AL15: 5000 | AR15: =$D$23 -> Presenteeism | AS15: =H22*E17*E24 -> 0
H16: Per year | AH16: Spin button default | AK16: 200 | AL16: 10000 | AR16: =$D$27 -> Staff turnover | AS16: =H23*E28 -> 0
D17: Number of employees | E17: ='Inputs Main'!E11 -> 50 | G17: Cost of intervention (person) | H17: =IF('Inputs Main'!I110=1,'Inputs Main'!I11/'Inputs Main'!E11,IF('Inputs Main'!I110=2,'Inputs Main'!I11,'Cost Breakdown'!E20/'Inputs Main'!E11)) -> 100 | AE17: Cost of absenteeism per day | AF17: =IF('Base case'!$E$127=1,Inputs!AG17,Inputs!E20) -> 153.98 | AG17: 153.98 | AK17: 300 | AL17: 15000 | AR17: Intervention cost | AS17: =H17 -> 100
AE18: Reduction in absenteeism | AF18: =IF('Base case'!$E$127=1,Inputs!AG18,Inputs!H21) -> 0 | AG18: 0 | AH18: =AF18 -> 0 | AK18: 400 | AL18: 20000 | AR18: Total | AS18: =SUM(AS14:AS17) -> 100
D19: Absenteeism (sick leave) | E19: Baseline | H19: Per year | AK19: 500 | AL19: 25000
D20: Cost of absenteeism per day | E20: =IF('Inputs Main'!F17="",'Inputs Main'!E17,'Inputs Main'!F17) -> 153.98 | AK20: 600 | AL20: 30000
G21: ='Inputs Main'!H17 -> Reduction in absenteeism (in days) | H21: =IF('Inputs Main'!J17="",IF('Inputs Main'!I17="No evidence",0,'Inputs Main'!I17),'Inputs Main'!J17) -> 0 | AE21: Cost of presenteeism per day | AF21: =IF('Base case'!$E$127=1,Inputs!AG21,Inputs!E24) -> 307.96 | AG21: 307.96 | AH21: =AF21 -> 307.96 | AK21: 700 | AL21: 35000
G22: ='Inputs Main'!H18 -> Reduction in presenteeism (in days) | H22: =IF('Inputs Main'!J18="",IF('Inputs Main'!I18="No evidence",0,'Inputs Main'!I18),'Inputs Main'!J18) -> 0 | AE22: Reduction in presenteeism | AF22: =IF('Base case'!$E$127=1,(Inputs!AG22/100),Inputs!H22) -> 0 | AG22: 0 | AH22: =AF22 -> 0 | AK22: 800 | AL22: 40000
D23: Presenteeism | E23: Baseline | G23: ='Inputs Main'!H19 -> Reduction in staff turnover (%) | H23: =IF('Inputs Main'!J19="",IF('Inputs Main'!I19="No evidence",0,'Inputs Main'!I19),'Inputs Main'!J19) -> 0 | AK23: 900 | AL23: 45000
D24: Cost of presenteeism per day | E24: =IF('Inputs Main'!F18="",'Inputs Main'!E18,'Inputs Main'!F18) -> 307.96 | AK24: 1000 | AL24: 50000
AE25: Cost per case of staff turnover | AF25: =IF('Base case'!$E$127=1,Inputs!AG25,Inputs!E28) -> 14983.71 | AG25: 14983.71 | AK25: =AF14 -> 100 | AL25: =AL13 -> 5000
AE26: Reduction in staff turnover | AF26: =(IF('Base case'!$E$127=1,(Inputs!AG26/100),Inputs!H23)) -> 0 | AG26: 0 | AH26: =AF26 -> 0
D27: Staff turnover | E27: Baseline
D28: Cost per case of staff turnover | E28: =IF('Inputs Main'!F19="",'Inputs Main'!E19,'Inputs Main'!F19) -> 14983.71 | AK28: Cost of absenteeism | AL28: ='Base case'!E20 -> 5000 | AN28: Reduction in days | AO28: ='Base case'!E20 -> 5000
AK29: 0 | AL29: 5000 | AN29: -5 | AO29: 43495
AK30: 50 | AL30: 5000 | AN30: -4 | AO30: 35796
AK31: 100 | AL31: 5000 | AN31: -3 | AO31: 28097
AK32: 150 | AL32: 5000 | AN32: -2 | AO32: 20398
AK33: 200 | AL33: 5000 | AN33: -1 | AO33: 12699
AK34: 250 | AL34: 5000 | AN34: 0 | AO34: 5000
AK35: 300 | AL35: 5000 | AN35: 1 | AO35: -2699
AK36: 350 | AL36: 5000 | AN36: 2 | AO36: -10398
AK37: 400 | AL37: 5000 | AN37: 3 | AO37: -18097
AK38: 450 | AL38: 5000 | AN38: 4 | AO38: -25796
AK39: 500 | AL39: 5000 | AN39: 5 | AO39: -33495
AK40: =AF17 -> 153.98 | AL40: =AL28 -> 5000 | AN40: 6 | AO40: -41194
AN41: 7 | AO41: -48893
AN42: 8 | AO42: -56592
AN43: 9 | AO43: -64291
AN44: 10 | AO44: -71990
AN45: =AF18 -> 0 | AO45: =AO28 -> 5000
AK47: Presenteeism
AK48: Cost of presenteeism | AL48: ='Base case'!E20 -> 5000 | AN48: Reduction in days | AO48: ='Base case'!E20 -> 5000
AK49: 0 | AL49: 5000 | AN49: -10 | AO49: 158980
AK50: 50 | AL50: 5000 | AN50: -8 | AO50: 128184
AK51: 100 | AL51: 5000 | AN51: -6 | AO51: 97388
AK52: 150 | AL52: 5000 | AN52: -4 | AO52: 66592
AK53: 200 | AL53: 5000 | AN53: -2 | AO53: 35796
AK54: 250 | AL54: 5000 | AN54: 0 | AO54: 5000
AK55: 300 | AL55: 5000 | AN55: 2 | AO55: -25796
AK56: 350 | AL56: 5000 | AN56: 4 | AO56: -56592
AK57: 400 | AL57: 5000 | AN57: 6 | AO57: -87388
AK58: 450 | AL58: 5000 | AN58: 8 | AO58: -118184
AK59: 500 | AL59: 5000 | AN59: 10 | AO59: -148980
AK60: =AF21 -> 307.96 | AL60: =AL48 -> 5000 | AN60: 12 | AO60: -179776
AN61: 14 | AO61: -210572
AN62: 16 | AO62: -241368
AN63: 18 | AO63: -272164
AN64: 20 | AO64: -302960
AN65: =AF22 -> 0 | AO65: =AO48 -> 5000
AK68: Staff turnover
AK69: Cost per case | AL69: ='Base case'!E20 -> 5000 | AN69: Reduction in turnover | AO69: ='Base case'!E20 -> 5000
AK70: 0 | AL70: 5000 | AN70: -0.05 | AO70: 42459.275
AK71: 5000 | AL71: 5000 | AN71: -0.04 | AO71: 34967.42
AK72: 10000 | AL72: 5000 | AN72: -0.03 | AO72: 27475.565
AK73: 15000 | AL73: 5000 | AN73: -0.02 | AO73: 19983.71
AK74: 20000 | AL74: 5000 | AN74: -0.01 | AO74: 12491.855
AK75: 25000 | AL75: 5000 | AN75: 0 | AO75: 5000
AK76: 30000 | AL76: 5000 | AN76: 0.01 | AO76: -2491.855
AK77: 35000 | AL77: 5000 | AN77: 0.02 | AO77: -9983.71
AK78: 40000 | AL78: 5000 | AN78: 0.03 | AO78: -17475.565
AK79: 45000 | AL79: 5000 | AN79: 0.04 | AO79: -24967.42
AK80: 50000 | AL80: 5000 | AN80: 0.05 | AO80: -32459.275
AK81: =AF25 -> 14983.71 | AL81: =AL69 -> 5000 | AN81: 0.06 | AO81: -39951.13
AN82: 0.07 | AO82: -47442.985
AN83: 0.08 | AO83: -54934.84
AN84: 0.09 | AO84: -62426.695
AN85: 0.1 | AO85: -69918.55
AN86: =AF26 -> 0 | AO86: =AL81 -> 5000
D116: Include?
D117: Absenteeism | E117: =IF(H21=0,0,1) -> 0
D118: Presenteeism | E118: =IF(H22=0,0,1) -> 0
D119: Staff turnover | E119: 0
D194: Number of days lost per person (absenteeism)
D196: 16-24 | E196: 0.012
D197: 25-34 | E197: 0.015
D198: 35-49 | E198: 0.02
D199: 50-64 | E199: 0.028
D200: 65+ | E200: 0.023
D202: http://www.ons.gov.uk/ons/dcp171778_412021.pdf
E203: Number employed (000s)
D204: 16-65 | E204: 29894 | F204: =E204/E206 -> 0.9632660953 | G204: =AVERAGE(E196:E199) -> 0.01875
D205: 65+ | E205: 1140 | F205: =E205/E206 -> 0.03673390475 | G205: =E200 -> 0.023
E206: =SUM(E204:E205) -> 31034 | F206: =SUM(F204:F205) -> 1 | G206: =SUMPRODUCT(G204:G205,E204:E205)/SUM(E204:E205) -> 0.0189061191
G207: =253*G206 -> 4.783248131
E210: CPI
D211: 2007 Q1 | E211: 103.7
D212: 2015 Dec | E212: 128.5
E213: =E212/E211 -> 1.239151398
E214: =11625*E213 -> 14405.135
E216: =528*52 -> 27456

Sheet Inputs Main
D11: Number of employees | E11: 50 | H11: Cost of intervention | I11: 100
H12: Total
D13: Intervention type | E13: 3 | H13: Per person
E14: (select from dropdown list) | H14: Using cost breakdown
E16: Baseline | F16: User defined | I16: Effectiveness | J16: User defined
D17: Cost of absenteeism per day | E17: 153.98 | H17: Reduction in absenteeism (in days) | I17: =IF(VLOOKUP(Inputs!$E$15,'Inputs Interventions'!$E$13:$I$27,3, FALSE)=0, "No evidence",VLOOKUP(Inputs!$E$15,'Inputs Interventions'!$E$13:$I$27,3, FALSE)) -> No evidence
D18: Cost of presenteeism per day | E18: 307.96 | H18: Reduction in presenteeism (in days) | I18: =IF(VLOOKUP(Inputs!$E$15,'Inputs Interventions'!$E$13:$I$27,4, FALSE)=0, "No evidence",VLOOKUP(Inputs!$E$15,'Inputs Interventions'!$E$13:$I$27,4, FALSE)) -> No evidence
D19: Cost per case of staff turnover | E19: 14983.71 | H19: Reduction in staff turnover (%) | I19: =IF(VLOOKUP(Inputs!$E$15,'Inputs Interventions'!$E$13:$I$27,5, FALSE)=0, "No evidence",VLOOKUP(Inputs!$E$15,'Inputs Interventions'!$E$13:$I$27,5, FALSE)) -> No evidence
H20: =CONCATENATE("Reduction in ",D26) -> Reduction in | I20: 0.1
X42: Intervention cost | Y42: Reduction in turnover required to be cost-saving (%)
X44: 0 | Y44: Always cost saving
X45: 200 | Y45: Always cost saving
X46: 400 | Y46: 0.49
X47: 600 | Y47: Cost-saving cannot be achieved
H108: User defined | I108: TRUE | J108: =IF(I108=TRUE, 1, 0) -> 1
H110: Total | I110: 2 | J110: =IF(I110=1, 1, 0) -> 0
H111: Per person | J111: =IF(I110=2, 1, 0) -> 1
H112: Using cost breakdown | J112: =IF(I110=3, 1, 0) -> 0
D187: Number of days lost per person (absenteeism)
D189: 16-24
D190: 25-34 | E190: 0.012
D191: 35-49 | E191: 0.015
D192: 50-64 | E192: 0.02
D193: 65+ | E193: 0.028
E194: 0.023
D195: http://www.ons.gov.uk/ons/dcp171778_412021.pdf
D197: 16-65 | E197: Number employed (000s)
D198: 65+ | E198: 29894
E199: 1140
E200: =SUM(E198:E199) -> 31034
D204: 2007 Q1 | E204: CPI
D205: 2015 Dec | E205: 103.7
E206: 128.5 | H206: =AVERAGE(E190:E193) -> 0.01875
E207: =E206/E205 -> 1.239151398 | G207: =E198/E200 -> 0.9632660953 | H207: =E194 -> 0.023
E208: =11625*E207 -> 14405.135 | G208: =E199/E200 -> 0.03673390475 | H208: =SUMPRODUCT(H206:H207,E198:E199)/SUM(E198:E199) -> 0.0189061191
G209: =#NULL! ->  | H209: =#NULL! -> 
E210: =528*52 -> 27456

Sheet Inputs Interventions
D11: ID | E11: Intervention type | F11: Description | G11: Employer outcomes | J11: Employee outcomes
G12: Reduction in absenteeism (days) | H12: Reduction in presenteeism (days) | I12: Reduction in staff turnover (point %) | J12: Confidence identifying mental health | K12: Uptake of support services | L12: Communication and awareness of support | M12: Managers mental health knowledge | N12: Destigmatisation | O12: Mental wellbeing | P12: Mental wellbeing (based on non RCTs) | Q12: Mental health symptoms | R12: Mental health symptoms (based on non RCTs) | S12: Mental health literacy | T12: Job stress | U12: Job stress (based on non RCTs) | V12: Job stress (based on RCTs reporting relative risk) | W12: Job satisfaction | X12: Job satisfaction (based on non RCTs) | Y12: Job satisfaction (based on RCTs reporting relative risk) | Z12: Work climate | AA12: Work climate (based on non RCTs) | AB12: Quality of life
D13: 1 | E13: Case study: Multicomponent health promotion | F13: Mills (2007) | G13: 4.3 | H13: 9.2
D14: 2 | E14: User defined | F14: User defined
D15: 3 | E15: Manager mental health training | F15: Universal manager-level | J15: 0.74 | K15: 1.34 | L15: 1.28 | M15: 1.45 | N15: 0.31
D16: 4 | E16: Leadership development | F16: Universal organisational-level | P16: -0.09 | X16: 0.01 | AA16: 0.06
D17: 5 | E17: Peer support | F17: Universal organisational-level | O17: 0.58 | T17: -0.16 | W17: 0.57
D18: 6 | E18: Mental health first aider | F18: Universal organisational-level | O18: 0.06 | Q18: -0.02 | S18: 0.53
D19: 7 | E19: Participatory approach | F19: Universal organisational-level | O19: 0.45 | Q19: 0.01 | R19: 0.14 | T19: 0.34 | U19: 0.15 | V19: -0.27 | W19: 0.19 | Y19: 0.22 | Z19: 0.18 | AA19: 0.02
D20: 8 | E20: Targeted cognitive behavioural theory | F20: Targeted individual-level | G20: 1.83 | H20: 4.03 | O20: 0.48 | Q20: 0.36 | S20: 0.02 | T20: 0.15 | W20: -0.09
D21: 9 | E21: Targeted mindfulness | F21: Targeted individual-level | G21: 2.29 | O21: 0.57 | Q21: 0.61 | T21: 0.91
D22: 10 | E22: Targeted digital/online stress management | F22: Targeted individual-level | G22: 0.71 | H22: 1.82 | Q22: 0.77 | S22: 0.51 | T22: 0.83 | W22: 0.2 | AB22: 0.58
D24: These are suggested inputs based on available data.
D25: Your own data can be entered into the table using the 'User defined' row. For all outcomes, a positive value indicates an improvement.
D26: Default values for employee outcomes are expressed in term of the standardised mean difference, unless otherwise stated.
D95: ID | E95: Intervention type | F95: Description | G95: Employer Outcomes | J95: Employee Outcomes
G96: absenteeism | H96: presenteeism | I96: staff turnover | J96: confidence identifying mental health | K96: uptake of support services | L96: communication and awareness of support | M96: managers mental health knowledge | N96: destigmatisation | O96: mental wellbeing | P96: mental wellbeing (based on non RCTs) | Q96: mental health symptoms | R96: mental health symptoms (based on non RCTs) | S96: mental health literacy | T96: job stress | U96: job stress (based on non RCTs) | V96: job stress (based on RCTs reporting relative risk) | W96: job satisfaction | X96: job satisfaction (based on non RCTs) | Y96: job satisfaction (based on RCTs reporting relative risk) | Z96: work climate | AA96: work climate (based on non RCTs) | AB96: quality of life | AC96: SUMMARY
D97: 1 | E97: =E13 -> Case study: Multicomponent health promotion | J97: =IF(J13="","",CONCATENATE(IF(J13>0, "● Improve ", "● Worsen "), J$96, " by ", ABS(J13))) ->  | K97: =IF(K13="","",CONCATENATE(IF(K13>0, "● Improve ", "● Worsen "), K$96, " by ", ABS(K13))) ->  | V97: =IF(V13="","",CONCATENATE(IF(V13>0, "● Improve ", "● Worsen "), V$96, " by ", TEXT(ABS(V13),"0%"))) ->  | W97: =IF(W13="","",CONCATENATE(IF(W13>0, "● Improve ", "● Worsen "), W$96, " by ", ABS(W13))) ->  | X97: =IF(X13="","",CONCATENATE(IF(X13>0, "● Improve ", "● Worsen "), X$96, " by ", ABS(X13))) ->  | Y97: =IF(Y13="","",CONCATENATE(IF(Y13>0, "● Improve ", "● Worsen "), Y$96, " by ", TEXT(ABS(Y13),"0%"))) ->  | Z97: =IF(Z13="","",CONCATENATE(IF(Z13>0, "● Improve ", "● Worsen "), Z$96, " by ", ABS(Z13))) ->  | AA97: =IF(AA13="","",CONCATENATE(IF(AA13>0, "● Improve ", "● Worsen "), AA$96, " by ", ABS(AA13))) ->  | AC97: =CONCATENATE(IF(J97="", "", CONCATENATE(J97, CHAR(10))), IF(K97="", "", CONCATENATE(K97, CHAR(10))), IF(L97="", "", CONCATENATE(L97, CHAR(10))), IF(M97="", "", CONCATENATE(M97, CHAR(10))), IF(N97="", "", CONCATENATE(N97, CHAR(10))), IF(O97="", "", CONCATENATE(O97, CHAR(10))), IF(P97="", "", CONCATENATE(P97, CHAR(10))), IF(Q97="", "", CONCATENATE(Q97, CHAR(10))), IF(R97="", "", CONCATENATE(R97, CHAR(10))), IF(S97="", "", CONCATENATE(S97, CHAR(10))), IF(T97="", "", CONCATENATE(T97, CHAR(10))), IF(U97="", "", CONCATENATE(U97, CHAR(10))), IF(V97="", "", CONCATENATE(V97, CHAR(10))), IF(W97="", "", CONCATENATE(W97, CHAR(10))), IF(X97="", "", CONCATENATE(X97, CHAR(10))), IF(Y97="", "", CONCATENATE(Y97, CHAR(10))), IF(Z97="", "", CONCATENATE(Z97, CHAR(10))), IF(AA97="", "", CONCATENATE(AA97, CHAR(10))), IF(AB97="", "", CONCATENATE(AB97, CHAR(10)))) -> 
D98: 2 | E98: =E14 -> User defined | J98: =IF(J14="","",CONCATENATE(IF(J14>0, "● Improve ", "● Worsen "), J$96, " by ", ABS(J14))) ->  | V98: =IF(V14="","",CONCATENATE(IF(V14>0, "● Improve ", "● Worsen "), V$96, " by ", TEXT(ABS(V14),"0%"))) ->  | W98: =IF(W14="","",CONCATENATE(IF(W14>0, "● Improve ", "● Worsen "), W$96, " by ", ABS(W14))) ->  | Y98: =IF(Y14="","",CONCATENATE(IF(Y14>0, "● Improve ", "● Worsen "), Y$96, " by ", TEXT(ABS(Y14),"0%"))) ->  | Z98: =IF(Z14="","",CONCATENATE(IF(Z14>0, "● Improve ", "● Worsen "), Z$96, " by ", ABS(Z14))) ->  | AC98: =CONCATENATE(IF(J98="", "", CONCATENATE(J98, CHAR(10))), IF(K98="", "", CONCATENATE(K98, CHAR(10))), IF(L98="", "", CONCATENATE(L98, CHAR(10))), IF(M98="", "", CONCATENATE(M98, CHAR(10))), IF(N98="", "", CONCATENATE(N98, CHAR(10))), IF(O98="", "", CONCATENATE(O98, CHAR(10))), IF(P98="", "", CONCATENATE(P98, CHAR(10))), IF(Q98="", "", CONCATENATE(Q98, CHAR(10))), IF(R98="", "", CONCATENATE(R98, CHAR(10))), IF(S98="", "", CONCATENATE(S98, CHAR(10))), IF(T98="", "", CONCATENATE(T98, CHAR(10))), IF(U98="", "", CONCATENATE(U98, CHAR(10))), IF(V98="", "", CONCATENATE(V98, CHAR(10))), IF(W98="", "", CONCATENATE(W98, CHAR(10))), IF(X98="", "", CONCATENATE(X98, CHAR(10))), IF(Y98="", "", CONCATENATE(Y98, CHAR(10))), IF(Z98="", "", CONCATENATE(Z98, CHAR(10))), IF(AA98="", "", CONCATENATE(AA98, CHAR(10))), IF(AB98="", "", CONCATENATE(AB98, CHAR(10)))) -> 
D99: 3 | E99: Manager mental health training | J99: =IF(J15="","",CONCATENATE(IF(J15>0, "● Improve ", "● Worsen "), J$96, " by ", ABS(J15))) -> ● Improve confidence identifying mental health by 0.74 | K99: ● Improve uptake of support services by 1.34 | L99: ● Improve communication and awareness of support by 1.28 | M99: ● Improve managers mental health knowledge by 1.45 | N99: ● Improve destigmatisation by 0.31 | W99: =IF(W15="","",CONCATENATE(IF(W15>0, "● Improve ", "● Worsen "), W$96, " by ", ABS(W15))) ->  | Z99: =IF(Z15="","",CONCATENATE(IF(Z15>0, "● Improve ", "● Worsen "), Z$96, " by ", ABS(Z15))) ->  | AC99: ● Improve confidence identifying mental health by 0.74 ● Improve uptake of support services by 1.34 ● Improve communication and awareness of support by 1.28 ● Improve managers mental health knowledge by 1.45 ● Improve destigmatisation by 0.31
D100: 4 | E100: Leadership development | J100: =IF(J16="","",CONCATENATE(IF(J16>0, "● Improve ", "● Worsen "), J$96, " by ", ABS(J16))) ->  | P100: ● Worsen mental wellbeing (based on non RCTs) by 0.09 | W100: =IF(W16="","",CONCATENATE(IF(W16>0, "● Improve ", "● Worsen "), W$96, " by ", ABS(W16))) ->  | X100: ● Improve job satisfaction (based on non RCTs) by 0.01 | Z100: =IF(Z16="","",CONCATENATE(IF(Z16>0, "● Improve ", "● Worsen "), Z$96, " by ", ABS(Z16))) ->  | AA100: ● Improve work climate (based on non RCTs) by 0.06 | AC100: ● Worsen mental wellbeing (based on non RCTs) by 0.09 ● Improve job satisfaction (based on non RCTs) by 0.01 ● Improve work climate (based on non RCTs) by 0.06
D101: 5 | E101: Peer support | J101: =IF(J17="","",CONCATENATE(IF(J17>0, "● Improve ", "● Worsen "), J$96, " by ", ABS(J17))) ->  | O101: ● Improve mental wellbeing by 0.58 | T101: ● Worsen job stress by 0.16 | W101: =IF(W17="","",CONCATENATE(IF(W17>0, "● Improve ", "● Worsen "), W$96, " by ", ABS(W17))) -> ● Improve job satisfaction by 0.57 | Z101: =IF(Z17="","",CONCATENATE(IF(Z17>0, "● Improve ", "● Worsen "), Z$96, " by ", ABS(Z17))) ->  | AC101: ● Improve mental wellbeing by 0.58 ● Worsen job stress by 0.16 ● Improve job satisfaction by 0.57
D102: 6 | E102: Mental health first aider | J102: =IF(J18="","",CONCATENATE(IF(J18>0, "● Improve ", "● Worsen "), J$96, " by ", ABS(J18))) ->  | O102: ● Improve mental wellbeing by 0.06 | Q102: ● Worsen mental health symptoms by 0.02 | S102: ● Improve mental health literacy by 0.53 | W102: =IF(W18="","",CONCATENATE(IF(W18>0, "● Improve ", "● Worsen "), W$96, " by ", ABS(W18))) ->  | Z102: =IF(Z18="","",CONCATENATE(IF(Z18>0, "● Improve ", "● Worsen "), Z$96, " by ", ABS(Z18))) ->  | AC102: ● Improve mental wellbeing by 0.06 ● Worsen mental health symptoms by 0.02 ● Improve mental health literacy by 0.53
D103: 7 | E103: Participatory approach | J103: =IF(J19="","",CONCATENATE(IF(J19>0, "● Improve ", "● Worsen "), J$96, " by ", ABS(J19))) ->  | O103: ● Improve mental wellbeing by 0.45 | Q103: ● Improve mental health symptoms by 0.01 | R103: ● Improve mental health symptoms (based on non RCTs) by 0.14 | T103: ● Improve job stress by 0.34 | U103: ● Improve job stress (based on non RCTs) by 0.15 | V103: ● Worsen job stress (based on RCTs reporting relative risk) by 27% | W103: =IF(W19="","",CONCATENATE(IF(W19>0, "● Improve ", "● Worsen "), W$96, " by ", ABS(W19))) -> ● Improve job satisfaction by 0.19 | Y103: ● Improve job satisfaction (based on RCTs reporting relative risk) by 22% | Z103: =IF(Z19="","",CONCATENATE(IF(Z19>0, "● Improve ", "● Worsen "), Z$96, " by ", ABS(Z19))) -> ● Improve work climate by 0.18 | AA103: ● Improve work climate (based on non RCTs) by 0.02 | AC103: ● Improve mental wellbeing by 0.45 ● Improve mental health symptoms by 0.01 ● Improve mental health symptoms (based on non RCTs) by 0.14 ● Improve job stress by 0.34 ● Improve job stress (based on non RCTs) by 0.15 ● Worsen job stress (based on RCTs reporting relative risk) by 27% ● Improve job satisfaction by 0.19 ● Improve job satisfaction (based on RCTs reporting relative risk) by 22% ● Improve work climate by 0.18 ● Improve work climate (based on non RCTs) by 0.02
D104: 8 | E104: Targeted cognitive behavioural theory | J104: =IF(J20="","",CONCATENATE(IF(J20>0, "● Improve ", "● Worsen "), J$96, " by ", ABS(J20))) ->  | O104: ● Improve mental wellbeing by 0.48 | Q104: ● Improve mental health symptoms by 0.36 | S104: ● Improve mental health literacy by 0.02 | T104: ● Improve job stress by 0.15 | W104: =IF(W20="","",CONCATENATE(IF(W20>0, "● Improve ", "● Worsen "), W$96, " by ", ABS(W20))) -> ● Worsen job satisfaction by 0.09 | Z104: =IF(Z20="","",CONCATENATE(IF(Z20>0, "● Improve ", "● Worsen "), Z$96, " by ", ABS(Z20))) ->  | AC104: ● Improve mental wellbeing by 0.48 ● Improve mental health symptoms by 0.36 ● Improve mental health literacy by 0.02 ● Improve job stress by 0.15 ● Worsen job satisfaction by 0.09
D105: 9 | E105: Targeted mindfulness | J105: =IF(J21="","",CONCATENATE(IF(J21>0, "● Improve ", "● Worsen "), J$96, " by ", ABS(J21))) ->  | O105: ● Improve mental wellbeing by 0.57 | Q105: ● Improve mental health symptoms by 0.61 | T105: ● Improve job stress by 0.91 | W105: =IF(W21="","",CONCATENATE(IF(W21>0, "● Improve ", "● Worsen "), W$96, " by ", ABS(W21))) ->  | Z105: =IF(Z21="","",CONCATENATE(IF(Z21>0, "● Improve ", "● Worsen "), Z$96, " by ", ABS(Z21))) ->  | AC105: ● Improve mental wellbeing by 0.57 ● Improve mental health symptoms by 0.61 ● Improve job stress by 0.91
D106: 10 | E106: Targeted digital/online stress management | J106: =IF(J22="","",CONCATENATE(IF(J22>0, "● Improve ", "● Worsen "), J$96, " by ", ABS(J22))) ->  | Q106: ● Improve mental health symptoms by 0.77 | S106: ● Improve mental health literacy by 0.51 | T106: ● Improve job stress by 0.83 | W106: =IF(W22="","",CONCATENATE(IF(W22>0, "● Improve ", "● Worsen "), W$96, " by ", ABS(W22))) -> ● Improve job satisfaction by 0.2 | Z106: =IF(Z22="","",CONCATENATE(IF(Z22>0, "● Improve ", "● Worsen "), Z$96, " by ", ABS(Z22))) ->  | AB106: ● Improve quality of life by 0.58 | AC106: ● Improve mental health symptoms by 0.77 ● Improve mental health literacy by 0.51 ● Improve job stress by 0.83 ● Improve job satisfaction by 0.2 ● Improve quality of life by 0.58
D107: 11 | E107: 0 | J107: =IF(J23="","",CONCATENATE(IF(J23>0, "● Improve ", "● Worsen "), J$96, " by ", ABS(J23))) ->  | W107: =IF(W23="","",CONCATENATE(IF(W23>0, "● Improve ", "● Worsen "), W$96, " by ", ABS(W23))) ->  | Z107: =IF(Z23="","",CONCATENATE(IF(Z23>0, "● Improve ", "● Worsen "), Z$96, " by ", ABS(Z23))) -> 
D108: 12 | E108: 0 | J108: =IF(J24="","",CONCATENATE(IF(J24>0, "● Improve ", "● Worsen "), J$96, " by ", ABS(J24))) ->  | W108: =IF(W24="","",CONCATENATE(IF(W24>0, "● Improve ", "● Worsen "), W$96, " by ", ABS(W24))) ->  | Z108: =IF(Z24="","",CONCATENATE(IF(Z24>0, "● Improve ", "● Worsen "), Z$96, " by ", ABS(Z24))) -> 
D109: 13 | E109: 0 | J109: =IF(J25="","",CONCATENATE(IF(J25>0, "● Improve ", "● Worsen "), J$96, " by ", ABS(J25))) ->  | W109: =IF(W25="","",CONCATENATE(IF(W25>0, "● Improve ", "● Worsen "), W$96, " by ", ABS(W25))) ->  | Z109: =IF(Z25="","",CONCATENATE(IF(Z25>0, "● Improve ", "● Worsen "), Z$96, " by ", ABS(Z25))) -> 
D110: 14 | E110: 0 | J110: =IF(J26="","",CONCATENATE(IF(J26>0, "● Improve ", "● Worsen "), J$96, " by ", ABS(J26))) ->  | W110: =IF(W26="","",CONCATENATE(IF(W26>0, "● Improve ", "● Worsen "), W$96, " by ", ABS(W26))) ->  | Z110: =IF(Z26="","",CONCATENATE(IF(Z26>0, "● Improve ", "● Worsen "), Z$96, " by ", ABS(Z26))) -> 
D111: 15 | E111: 0 | J111: =IF(J27="","",CONCATENATE(IF(J27>0, "● Improve ", "● Worsen "), J$96, " by ", ABS(J27))) ->  | W111: =IF(W27="","",CONCATENATE(IF(W27>0, "● Improve ", "● Worsen "), W$96, " by ", ABS(W27))) ->  | Z111: =IF(Z27="","",CONCATENATE(IF(Z27>0, "● Improve ", "● Worsen "), Z$96, " by ", ABS(Z27))) -> 
D117: DEFAULT VALUES
D118: ID | E118: Intervention type | F118: Description | G118: Employer outcomes | J118: Employee outcomes
G119: Reduction in absenteeism (days) | H119: Reduction in presenteeism (days) | I119: Reduction in staff turnover (point %) | J119: Confidence identifying mental health | K119: Uptake of support services | L119: Communication and awareness of support | M119: Managers mental health knowledge | N119: Destigmatisation | O119: Mental wellbeing | P119: Mental wellbeing (based on non RCTs) | Q119: Mental health symptoms | R119: Mental health symptoms (based on non RCTs) | S119: Mental health literacy | T119: Job stress | U119: Job stress (based on non RCTs) | V119: Job stress (based on RCTs reporting relative risk) | W119: Job satisfaction | X119: Job satisfaction (based on non RCTs) | Y119: Job satisfaction (based on RCTs reporting relative risk) | Z119: Work climate | AA119: Work climate (based on non RCTs) | AB119: Quality of life
D120: 1 | E120: Case study: Multicomponent health promotion | F120: Mills (2007) | G120: 4.3 | H120: 9.2
D121: 2 | E121: User defined | F121: User defined
D122: 3 | E122: Manager mental health training | F122: Universal manager-level | J122: 0.74 | K122: 1.34 | L122: 1.28 | M122: 1.45 | N122: 0.31
D123: 4 | E123: Leadership development | F123: Universal organisational-level | P123: -0.09 | X123: 0.01 | AA123: 0.06
D124: 5 | E124: Peer support | F124: Universal organisational-level | O124: 0.58 | T124: -0.16 | W124: 0.57
D125: 6 | E125: Mental health first aider | F125: Universal organisational-level | O125: 0.06 | Q125: -0.02 | S125: 0.53
D126: 7 | E126: Participatory approach | F126: Universal organisational-level | O126: 0.45 | Q126: 0.01 | R126: 0.14 | T126: 0.34 | U126: 0.15 | V126: -0.27 | W126: 0.19 | Y126: 0.22 | Z126: 0.18 | AA126: 0.02
D127: 8 | E127: Targeted cognitive behavioural theory | F127: Targeted individual-level | G127: 1.83 | H127: 4.03 | O127: 0.48 | Q127: 0.36 | S127: 0.02 | T127: 0.15 | W127: -0.09
D128: 9 | E128: Targeted mindfulness | F128: Targeted individual-level | G128: 2.29 | O128: 0.57 | Q128: 0.61 | T128: 0.91
D129: 10 | E129: Targeted digital/online stress management | F129: Targeted individual-level | G129: 0.71 | H129: 1.82 | Q129: 0.77 | S129: 0.51 | T129: 0.83 | W129: 0.2 | AB129: 0.58
E171: 0.012
D172: Number of days lost per person (absenteeism) | E172: 0.015
E173: 0.02
D174: 16-24 | E174: 0.028
D175: 25-34 | E175: 0.023
D176: 35-49
D177: 50-64
D178: 65+ | E178: Number employed (000s)
E179: 29894
D180: http://www.ons.gov.uk/ons/dcp171778_412021.pdf | E180: 1140
E181: =SUM(E179:E180) -> 31034
D182: 16-65
D183: 65+
E185: CPI
E186: 103.7
E187: 128.5
E188: =E187/E186 -> 1.239151398
D189: 2007 Q1 | E189: =11625*E188 -> 14405.135
D190: 2015 Dec
E191: =528*52 -> 27456
F195: =E179/E181 -> 0.9632660953
F196: =E180/E181 -> 0.03673390475
F197: =SUM(F195:F196) -> 1

Sheet Cost Breakdown
D7: Cost breakdown
D8: If a breakdown of the costs associated with the intervention is available, this section can be used to calculate the overall cost of the intervention.
E10: User defined
D11: Participation costs
D12: Delivery costs
D13: Other costs
D14: Premises hire
D15: Equipment hire
D16: Travel expenses
D17: Accommodation, subsistence etc.
D18: Printing, books, materials etc.
D19: Other
D20: Total intervention costs | E20: =SUM(E11:E19) -> 0
E154: 0.012
D155: Number of days lost per person (absenteeism) | E155: 0.015
E156: 0.02
D157: 16-24 | E157: 0.028
D158: 25-34 | E158: 0.023
D159: 35-49
D160: 50-64
D161: 65+ | E161: Number employed (000s)
E162: 29894
D163: http://www.ons.gov.uk/ons/dcp171778_412021.pdf | E163: 1140
E164: =SUM(E162:E163) -> 31034
D165: 16-65
D166: 65+
E168: CPI
E169: 103.7
E170: 128.5
E171: =E170/E169 -> 1.239151398
D172: 2007 Q1 | E172: =11625*E171 -> 14405.135
D173: 2015 Dec
E174: =528*52 -> 27456
F175: =E162/E164 -> 0.9632660953
F176: =E163/E164 -> 0.03673390475
F177: =SUM(F175:F176) -> 1

Sheet Base case
C4: XXXXXXXXXXX
D10: =IF(Inputs!E15="Case study: Multicomponent health promotion", "The results are based on an unspecified mental wellbeing intervention.", CONCATENATE("The results are based on a ",Inputs!G15, " intervention.")) -> The results are based on a manager mental health training intervention.
D11: All results should be interpreted with caution.
E13: One-year time horizon,
E14: =CONCATENATE("per ",Inputs!AF12, " employees") -> per 50 employees
E15: Incremental cost
D16: Cost of absenteeism | E16: =-Inputs!AF12*Inputs!AF17*Inputs!AF18 -> 0
D17: Cost of presenteeism | E17: =-Inputs!AF12*Inputs!AF21*Inputs!AF22 -> 0
D18: Cost of staff turnover | E18: =-Inputs!AF12*Inputs!AF25*Inputs!AF26 -> 0
D19: Intervention cost | E19: =Inputs!AF14*Inputs!AF12 -> 5000
D20: Total cost | E20: =SUM(E16:E19) -> 5000
D21: Cost per person | E21: =E20/Inputs!E17 -> 100
D23: Employee outcomes
D24: =IF(D25="","There is no evidence relating to employee outcomes.", "The intervention would:") -> The intervention would:
D25: ● Improve confidence identifying mental health by 0.74 ● Improve uptake of support services by 1.34 ● Improve communication and awareness of support by 1.28 ● Improve managers mental health knowledge by 1.45 ● Improve destigmatisation by 0.31
D35: =IF(D25="", "",IF(Inputs!E15="user defined","",E102)) -> Changes in employee outcomes are expressed in term of the standardised mean difference, unless otherwise stated. RCT = randomised control trial
H36: NB: Data are not available for all outcomes
D81: The results shown are limited to the
D84: =IF(Inputs!E117=1,"absenteeism","") ->  | E84: =IF(D84="",0,1) -> 0 | F84: 1
D85: =IF(Inputs!E118=1,"presenteeism","") ->  | E85: =IF(D85="",0,1) -> 0 | F85: 2
D86: =IF(Inputs!E119=1,"staff turnover","") ->  | E86: =IF(D86="",0,1) -> 0 | F86: 3
D87: =SUM(E84:E86) -> 0
D88: =VLOOKUP(0,E84:F86,2,FALSE) -> 1
D89: absenteeism and the cost of the intervention. However, subject to relevant data being available the user can include productivity and change in staff turnover in the results.
D91: =IF(D87=1,1,IF(D87=3,5,IF(D88=1,2,IF(D88=2,3,4)))) -> 2
D93: 1 | E93: =CONCATENATE("The employer outcomes are limited to the cost of ",D84,D85,D86," only.") -> The employer outcomes are limited to the cost of only.
D94: 2 | E94: The employer outcomes are limited to the costs of presenteeism and staff turnover.
D95: 3 | E95: The employer outcomes are limited to the costs of absenteeism and staff turnover.
D96: 4 | E96: The employer outcomes are limited to the costs of absenteeism and presenteeism.
D97: 5 | E97: The employer outcomes are limited to the costs of absenteeism, presenteeism and staff turnover.
E100: Changes in employee outcomes are expressed in term of the standardised mean difference, unless otherwise stated.
E101: RCT = randomised control trial
E102: =CONCATENATE(E100, CHAR(10),E101) -> Changes in employee outcomes are expressed in term of the standardised mean difference, unless otherwise stated. RCT = randomised control trial
D112: Employee Outcomes
D113: =VLOOKUP(Inputs!E15,'Inputs Interventions'!E97:AC111,25, FALSE) -> ● Improve confidence identifying mental health by 0.74 ● Improve uptake of support services by 1.34 ● Improve communication and awareness of support by 1.28 ● Improve managers mental health knowledge by 1.45 ● Improve destigmatisation by 0.31
D127: Slider chart on/off switch | E127: 2
D128: 1 = on, 2= off
D130: Impact
D134: Confidence identifying mental health | E134: Uptake of support services | F134: Communication and awareness of support | G134: Managers mental health knowledge | H134: Destigmatisation | I134: Mental wellbeing | J134: Mental wellbeing (based on non RCTs) | K134: Mental health symptoms | L134: Mental health symptoms (based on non RCTs) | M134: Mental health literacy | N134: Job stress | O134: Job stress (based on non RCTs) | P134: Job stress (based on RCTs reporting relative risk) | Q134: Job satisfaction | R134: Job satisfaction (based on non RCTs) | S134: Job satisfaction (based on RCTs reporting relative risk) | T134: Work climate | U134: Work climate (based on non RCTs) | V134: Quality of life
D135: =VLOOKUP(Inputs!$E$15,'Inputs Interventions'!$E$13:$AB$22,6, FALSE) -> 0.74 | E135: =VLOOKUP(Inputs!$E$15,'Inputs Interventions'!$E$13:$AB$22,7, FALSE) -> 1.34 | F135: =VLOOKUP(Inputs!$E$15,'Inputs Interventions'!$E$13:$AB$22,8, FALSE) -> 1.28 | G135: =VLOOKUP(Inputs!$E$15,'Inputs Interventions'!$E$13:$AB$22,9, FALSE) -> 1.45 | H135: =VLOOKUP(Inputs!$E$15,'Inputs Interventions'!$E$13:$AB$22,10, FALSE) -> 0.31 | I135: =VLOOKUP(Inputs!$E$15,'Inputs Interventions'!$E$13:$AB$22,11, FALSE) -> 0 | J135: =VLOOKUP(Inputs!$E$15,'Inputs Interventions'!$E$13:$AB$22,12, FALSE) -> 0 | K135: =VLOOKUP(Inputs!$E$15,'Inputs Interventions'!$E$13:$AB$22,13, FALSE) -> 0 | L135: =VLOOKUP(Inputs!$E$15,'Inputs Interventions'!$E$13:$AB$22,14, FALSE) -> 0 | M135: =VLOOKUP(Inputs!$E$15,'Inputs Interventions'!$E$13:$AB$22,15, FALSE) -> 0 | N135: =VLOOKUP(Inputs!$E$15,'Inputs Interventions'!$E$13:$AB$22,16, FALSE) -> 0 | O135: =VLOOKUP(Inputs!$E$15,'Inputs Interventions'!$E$13:$AB$22,17, FALSE) -> 0 | P135: =VLOOKUP(Inputs!$E$15,'Inputs Interventions'!$E$13:$AB$22,18, FALSE) -> 0 | Q135: =VLOOKUP(Inputs!$E$15,'Inputs Interventions'!$E$13:$AB$22,19, FALSE) -> 0 | R135: =VLOOKUP(Inputs!$E$15,'Inputs Interventions'!$E$13:$AB$22,20, FALSE) -> 0 | S135: =VLOOKUP(Inputs!$E$15,'Inputs Interventions'!$E$13:$AB$22,21, FALSE) -> 0 | T135: =VLOOKUP(Inputs!$E$15,'Inputs Interventions'!$E$13:$AB$22,22, FALSE) -> 0 | U135: =VLOOKUP(Inputs!$E$15,'Inputs Interventions'!$E$13:$AB$22,23, FALSE) -> 0 | V135: =VLOOKUP(Inputs!$E$15,'Inputs Interventions'!$E$13:$AB$22,24, FALSE) -> 0
D136: =IF(D135<0,D135,"") ->  | E136: =IF(E135<0,E135,"") -> 
D137: =IF(D135>0,D135,"") -> 0.74 | E137: =IF(E135>0,E135,"") -> 1.34 | F137: 1.28 | G137: 1.45 | H137: 0.31

Sheet SA
C4: XXXXXXXXXXX
AO13: Before | AP13: After | AQ13: Difference
AN14: Cost of absenteeism | AO14: 25502.4 | AP14: 22952.16 | AQ14: -2550.24
AN15: Income from increased productivity | AO15: 1185660 | AP15: 1197516.6 | AQ15: -11856.6
AN16: Cost of staff turnover | AO16: 50986.10656 | AP16: 42063.53791 | AQ16: -8922.568648
AN17: Healthcare costs | AO17: 0 | AP17: 0 | AQ17: 0
AN18: Societal costs | AO18: 0 | AP18: 0 | AQ18: 0
AN19: Intervention cost | AO19: 0 | AP19: 6000 | AQ19: 6000
E20: 1 | AN20: Total | AO20: 1262148.507 | AP20: 1268532.298 | AQ20: -17329.40865
D27: =IF(F125<0,"Assuming all other inputs remain the same, the intervention cannot be cost saving at any given cost per intervention",CONCATENATE("Assuming all other inputs remain the same, the intervention is cost neutral (i.e. the incremental costs are zero) when the cost of the intervention per person is ",TEXT(F125,"£#,##0"))) -> Assuming all other inputs remain the same, the intervention cannot be cost saving at any given cost per intervention
AW36: Live
AU37: Death | AV37: TRUE | AW37: =IF(AV37=TRUE,E38,"") -> 0
E113: Cost of intervention per person
E114: =Inputs!D19 -> Absenteeism (sick leave)
E115: =Inputs!D23 -> Presenteeism
E116: =Inputs!D27 -> Staff turnover
E120: 4
D122: Calculating cost neutral value
D123: No of employees | E123: =Inputs!AF12 -> 50 | F123: 50 | G123: Cost of absenteeism | H123: =-F123*F128*F129 -> -7699
G124: Cost of presenteeism | H124: =-F123*F132*F133 -> -15398
D125: Cost of intervention per person | E125: =Inputs!AF14 -> 100 | F125: -287.2455 | G125: Cost of staff turnover | H125: =-F123*F136*F137 -> 37459.275
G126: Intervention cost | H126: =F123*F125 -> -14362.275
G127: Total cost | H127: =SUM(H123:H126) -> 0
D128: Cost of absenteeism per day | E128: =Inputs!AF17 -> 153.98 | F128: 153.98
D129: Reduction in absenteeism | E129: =Inputs!AF18 -> 0 | F129: 1
D132: Cost of presenteeism per day | E132: =Inputs!AF21 -> 307.96 | F132: 307.96
D133: Reduction in presenteeism | E133: =Inputs!AF22 -> 0 | F133: 1
D136: Cost per case of staff turnover | E136: =Inputs!AF25 -> 14983.71 | F136: 14983.71
D137: Reduction in staff turnover | E137: =Inputs!AF26 -> 0 | F137: -0.05

Sheet SAAbs
C4: XXXXXXXXXXX
AO13: Before | AP13: After | AQ13: Difference
AN14: Cost of absenteeism | AO14: 25502.4 | AP14: 22952.16 | AQ14: -2550.24
AN15: Income from increased productivity | AO15: 1185660 | AP15: 1197516.6 | AQ15: -11856.6
AN16: Cost of staff turnover | AO16: 50986.10656 | AP16: 42063.53791 | AQ16: -8922.568648
AN17: Healthcare costs | AO17: 0 | AP17: 0 | AQ17: 0
AN18: Societal costs | AO18: 0 | AP18: 0 | AQ18: 0
AN19: Intervention cost | AO19: 0 | AP19: 6000 | AQ19: 6000
AN20: Total | AO20: 1262148.507 | AP20: 1268532.298 | AQ20: -17329.40865
D27: =CONCATENATE("Assuming all other inputs remain the same, the intervention is cost neutral (i.e. the incremental costs are zero) when there is ", IF(F129<0, "an increase ", "a reduction "), "in absenteeism of ",ABS(ROUND(F129,1)), " days") -> Assuming all other inputs remain the same, the intervention is cost neutral (i.e. the incremental costs are zero) when there is a reduction in absenteeism of 3.5 days
AW36: Live
AU37: Death | AV37: TRUE | AW37: =IF(AV37=TRUE,E38,"") -> 0
E113: Cost of intervention per person
E114: Absenteeism
E115: Productivity
E116: Staff turnover
E117: Health care costs
E118: Other societal costs
E119: 5
D122: Calculating cost neutral value
D123: No of employees | E123: =Inputs!AF12 -> 50 | F123: 50 | G123: Cost of absenteeism | H123: =-F123*F128*F129 -> -27061.275
G124: Cost of presenteeism | H124: =-F123*F132*F133 -> -15398
D125: Cost of intervention per person | E125: =Inputs!AF14 -> 100 | F125: 100 | G125: Cost of staff turnover | H125: =-F123*F136*F137 -> 37459.275
G126: Intervention cost | H126: =F123*F125 -> 5000
G127: Total cost | H127: =SUM(H123:H126) -> -7.275957614e-12
D128: Cost of absenteeism per day | E128: =Inputs!AF17 -> 153.98 | F128: 153.98
D129: Reduction in absenteeism | E129: =Inputs!AF18 -> 0 | F129: 3.51490778
D132: Cost of presenteeism per day | E132: =Inputs!AF21 -> 307.96 | F132: 307.96
D133: Reduction in presenteeism | E133: =Inputs!AF22 -> 0 | F133: 1
D136: Cost per case of staff turnover | E136: =Inputs!AF25 -> 14983.71 | F136: 14983.71
D137: Reduction in staff turnover | E137: =Inputs!AF26 -> 0 | F137: -0.05

Sheet SAProd
C4: XXXXXXXXXXX
AO13: Before | AP13: After | AQ13: Difference
AN14: Cost of absenteeism | AO14: 25502.4 | AP14: 22952.16 | AQ14: -2550.24
AN15: Income from increased productivity | AO15: 1185660 | AP15: 1197516.6 | AQ15: -11856.6
AN16: Cost of staff turnover | AO16: 50986.10656 | AP16: 42063.53791 | AQ16: -8922.568648
AN17: Healthcare costs | AO17: 0 | AP17: 0 | AQ17: 0
AN18: Societal costs | AO18: 0 | AP18: 0 | AQ18: 0
AN19: Intervention cost | AO19: 0 | AP19: 6000 | AQ19: 6000
AN20: Total | AO20: 1262148.507 | AP20: 1268532.298 | AQ20: -17329.40865
D27: =CONCATENATE("Assuming all other inputs remain the same, the intervention is cost neutral (i.e. the incremental costs are zero) when there is ", IF(F133<0, "an increase ", "a reduction "), "in presenteeism of ",ABS(ROUND(F133,1)), " days") -> Assuming all other inputs remain the same, the intervention is cost neutral (i.e. the incremental costs are zero) when there is a reduction in presenteeism of 2.3 days
AW36: Live
AU37: Death | AV37: TRUE | AW37: =IF(AV37=TRUE,E38,"") -> 0
E113: Cost of intervention per person
E114: Absenteeism
E115: Productivity
E116: Staff turnover
E117: Health care costs
E118: Other societal costs
E119: 3
D122: Calculating cost neutral value
D123: No of employees | E123: =Inputs!AF12 -> 50 | F123: 50 | G123: Cost of absenteeism | H123: =-F123*F128*F129 -> -7699
G124: Cost of presenteeism | H124: =-F123*F132*F133 -> -34760.275
D125: Cost of intervention per person | E125: =Inputs!AF14 -> 100 | F125: 100 | G125: Cost of staff turnover | H125: =-F123*F136*F137 -> 37459.275
G126: Intervention cost | H126: =F123*F125 -> 5000
G127: Total cost | H127: =SUM(H123:H126) -> 0
D128: Cost of absenteeism per day | E128: =Inputs!AF17 -> 153.98 | F128: 153.98
D129: Reduction in absenteeism | E129: =Inputs!AF18 -> 0 | F129: 1
D132: Cost of presenteeism per day | E132: =Inputs!AF21 -> 307.96 | F132: 307.96
D133: Reduction in presenteeism | E133: =Inputs!AF22 -> 0 | F133: 2.25745389
D136: Cost per case of staff turnover | E136: =Inputs!AF25 -> 14983.71 | F136: 14983.71
D137: Reduction in staff turnover | E137: =Inputs!AF26 -> 0 | F137: -0.05

Sheet SATurnover
C4: XXXXXXXXXXX
AO13: Before | AP13: After | AQ13: Difference
AN14: Cost of absenteeism | AO14: 25502.4 | AP14: 22952.16 | AQ14: -2550.24
AN15: Income from increased productivity | AO15: 1185660 | AP15: 1197516.6 | AQ15: -11856.6
AN16: Cost of staff turnover | AO16: 50986.10656 | AP16: 42063.53791 | AQ16: -8922.568648
AN17: Healthcare costs | AO17: 0 | AP17: 0 | AQ17: 0
AN18: Societal costs | AO18: 0 | AP18: 0 | AQ18: 0
AN19: Intervention cost | AO19: 0 | AP19: 6000 | AQ19: 6000
AN20: Total | AO20: 1262148.507 | AP20: 1268532.298 | AQ20: -17329.40865
D27: =CONCATENATE("Assuming all other inputs remain the same, the intervention is cost neutral (i.e. the incremental costs are zero) when there is ", IF(F137<0, "an increase ", "a reduction "), "in staff turnover of ",ROUND(ABS(F137*100),1), "%") -> Assuming all other inputs remain the same, the intervention is cost neutral (i.e. the incremental costs are zero) when there is an increase in staff turnover of 2.4%
AW36: Live
AU37: Death | AV37: TRUE | AW37: =IF(AV37=TRUE,E38,"") -> 0
E113: Cost of intervention per person
E114: Absenteeism
E115: Productivity
E116: Staff turnover
E117: Health care costs
E118: Other societal costs
E119: 3
D122: Calculating cost neutral value
D123: No of employees | E123: =Inputs!AF12 -> 50 | F123: 50 | G123: Cost of absenteeism | H123: =-F123*F128*F129 -> -7699
G124: Cost of presenteeism | H124: =-F123*F132*F133 -> -15398
D125: Cost of intervention per person | E125: =Inputs!AF14 -> 100 | F125: 100 | G125: Cost of staff turnover | H125: =-F123*F136*F137 -> 18097
G126: Intervention cost | H126: =F123*F125 -> 5000
G127: Total cost | H127: =SUM(H123:H126) -> 0
D128: Cost of absenteeism per day | E128: =Inputs!AF17 -> 153.98 | F128: 153.98
D129: Reduction in absenteeism | E129: =Inputs!AF18 -> 0 | F129: 1
D132: Cost of presenteeism per day | E132: =Inputs!AF21 -> 307.96 | F132: 307.96
D133: Reduction in presenteeism | E133: =Inputs!AF22 -> 0 | F133: 1
D136: Cost per case of staff turnover | E136: =Inputs!AF25 -> 14983.71 | F136: 14983.71
D137: Reduction in staff turnover | E137: =Inputs!AF26 -> 0 | F137: -0.02415556628
